Cogmind - Beta 13 @@@ ROGUE MODE // 2024.04.03 @ 13:14:14 Player: donk Result: Destroyed by Y-54 Guardian via exploding Fusion Modulator Performance ------------- Evolutions (3) 1500 Regions Visited (6) 1200 Robots Destroyed (75) 375 Value Destroyed (2005) 2005 Prototype IDs (5) 100 Alien Tech Used (0) 0 Bonus (0) 0 TOTAL SCORE: 5180 Bonus ------- None Cogmind --------- Core Integrity 0/700 Matter 243/300 Energy 290/290 System Corruption 30% Temperature Cool (24) Movement Rolling (95) Ox1 Location -7/Factory Parts ------- > --- POWER (2) -------- Improved Deuterium Engine > --- PROPULSION (4) --- Medium Treads Wheel Wheel Wheel > --- UTILITY (4) ------ Improved Heat Sink Small Storage Unit Improved Medium Armor Plating Improved Medium Armor Plating > --- WEAPON (3) ------- Cooled Pulse Rifle Heavy Missile Launcher > --- INVENTORY (8) ---- Light Ion Engine Nuclear Core Carbon-fiber Leg Airjet Small Matter Pod (0) Component Analysis Suite Improved Field Recycling Unit (0) Peak State ------------ > --- POWER ------------ Light Nuclear Core Micro Nuclear Core > --- PROPULSION ------- Aluminum Leg VSS Leg VSS Leg VSS Leg > --- UTILITY ---------- Medium Storage Unit Improved Sensor Array Improved Signal Interpreter Kinecellerator > --- WEAPON ----------- Lightning Gun Gauss Cannon Gauss Cannon > --- INVENTORY -------- Light Ion Engine Light Ion Engine Light Treads Improved Aluminum Leg Carbon-fiber Leg VSS Leg VSS Leg Improved Light Armor Plating Component Analysis Suite Gauss Cannon [Rating: 42] Favorites ----------- Power Micro Nuclear Core Engine Light Ion Engine Power Core Micro Nuclear Core Propulsion Light Treads Treads Light Treads Leg VSS Leg Wheel Wheel Hover Unit Airjet Utility Medium Storage Unit Device Improved Heat Sink Storage Medium Storage Unit Processor Improved Signal Interpreter Protection Improved Light Armor Plating Weapon Gauss Cannon Energy Gun Lightning Gun Energy Cannon Particle Cannon Ballistic Gun Light Assault Rifle Ballistic Cannon Gauss Cannon Launcher Grenade Launcher Build | -11 -10 -9 -8 -7 -7 -7 ------- Run | Yrd Mat Mat Mat Fac Was Fac Slots Evolved 6 | . . 2 2 2 . . Power 1 | . . . . 1 . . Propulsion 2 | . . 2 . . . . Utility 2 | . . . 2 . . . Weapon 1 | . . . . 1 . . Parts Attached 132 | 6 9 7 55 32 1 22 Power 19 | 1 . 1 4 8 1 4 Engine 12 | 1 . 1 1 5 . 4 Core 7 | . . . 3 3 1 . Reactor . | . . . . . . . Propulsion 43 | 2 . 3 22 7 . 9 Treads 15 | 2 . 1 8 1 . 3 Leg 23 | . . 2 14 6 . 1 Wheel 4 | . . . . . . 4 Hover 1 | . . . . . . 1 Flight . | . . . . . . . Utility 34 | 1 4 . 17 6 . 6 Device 18 | . . . 11 4 . 3 Storage 8 | 1 3 . 2 1 . 1 Processor 2 | . . . 1 1 . . Hackware . | . . . . . . . Protection 6 | . 1 . 3 . . 2 Artifact . | . . . . . . . Weapon 36 | 2 5 3 12 11 . 3 Energy Gun 8 | . . . 1 5 . 2 Energy Cannon 5 | . . 2 3 . . . Ballistic Gun 7 | 2 1 1 3 . . . Ballistic Cannon 13 | . 2 . 5 6 . . Launcher 3 | . 2 . . . . 1 Special Weapon . | . . . . . . . Impact Weapon . | . . . . . . . Slashing Weapon . | . . . . . . . Piercing Weapon . | . . . . . . . Special Melee Weapon . | . . . . . . . Unidentified Prototypes 4 | . . . . . 1 3 Parts Lost 31 | . . . 9 19 1 2 Power 9 | . . . 2 6 . 1 Propulsion 5 | . . . 1 4 . . Utility 10 | . . . 5 3 1 1 Weapon 7 | . . . 1 6 . . Highest Loss Streak 8 | . . . 4 8 1 1 To Critical Strikes . | . . . . . . . Average Slot Usage (%) 86 | . 99 98 92 91 5 38 Engine 5 | . 14 11 . 6 . 6 Core 4 | . . . 8 5 . . Treads 15 | . 28 20 25 . . . Leg 12 | . . 22 9 27 . 3 Device 7 | . . . 10 9 . 6 Storage 10 | . 15 22 10 7 . 3 Processor 2 | . . . . 5 5 . Protection 6 | . 12 . 7 3 . 6 Energy Gun 1 | . . . . 4 . 3 Energy Cannon 3 | . . 11 7 . . . Ballistic Gun 1 | . 7 5 . . . . Ballistic Cannon 10 | . 11 5 9 17 . . Launcher 1 | . 8 . . . . . Naked Turns 97 | . . . . . 35 62 Heaviest Build 51 | 12 19 23 47 46 . 51 Greatest Support 80 | 40 40 20 80 51 3 30 Greatest Overweight (x) 4 | 1 . 1 3 4 . 2 Average Overweight (x) . | . . . . . . . Largest Inventory Capacity 10 | 8 8 8 10 10 5 8 Average Capacity 8 | 7 6 8 9 9 5 6 Most Carried 10 | 4 8 6 10 10 5 7 Average Carried 6 | 3 4 4 8 6 4 4 Final Capacity 10 | 8 8 8 10 5 5 8 Final Carried 10 | 3 7 4 10 2 5 7 Class Distribution -------------------- 50% | Mutant 24% | Scavenger-Mutant 16% | Skirmisher 3% | Scavenger-Skirmisher Dominant Class ---------------- Mutant | -10/Materials Mutant | -9/Materials Scavenger-Mutant | -8/Materials Skirmisher | -7/Factory Mutant | -7/Waste Mutant | -7/Factory Resources | -11 -10 -9 -8 -7 -7 -7 ----------- Run | Yrd Mat Mat Mat Fac Was Fac Matter Collected 2995 | 190 560 163 1027 680 99 276 Remotely . | . . . . . . . Salvage Created 2437 | . 356 112 1284 427 . 258 Parts 125 | . 16 6 56 31 . 16 Haulers Intercepted 2 | . . . 2 . . . Recyclers Shooed 10 | . 2 1 4 2 . 1 Parts Field Recycled . | . . . . . . . Retrieved Matter . | . . . . . . . Parts Self-Destructed . | . . . . . . . Prevented . | . . . . . . . Kills | -11 -10 -9 -8 -7 -7 -7 ------- Run | Yrd Mat Mat Mat Fac Was Fac Combat Hostiles Destroyed 35 | . 6 1 20 8 . . Guns 2 | . 1 . . 1 . . Cannons 29 | . 3 1 20 5 . . AOE 2 | . 2 . . . . . Classes Destroyed 12 | . 5 1 5 1 . . Worker 13 | . . . 5 2 . 6 Builder 6 | . 2 . 1 3 . . Hauler 2 | . . . 2 . . . Recycler 11 | . 3 1 4 1 . 2 Mechanic 1 | . 1 . . . . . Watcher 7 | . 2 . 4 1 . . Grunt 24 | . 6 . 14 4 . . Brawler 1 | . . . 1 . . . Duelist 1 | . . . 1 . . . Sentry 2 | . . 1 1 . . . Hunter 4 | . . . 3 1 . . Programmer 3 | . . . . 3 . . Best Kill Streak 6 | . 4 1 6 2 . 4 Combat Bots Only 3 | . 2 1 3 2 . . Max Kills in Single Turn 2 | . 2 1 2 1 . 1 Gunslinging . | . . . . . . . Exploded 1 | . 1 . . . . . Melee . | . . . . . . . Uniques/NPCs Destroyed . | . . . . . . . Combat | -11 -10 -9 -8 -7 -7 -7 -------- Run | Yrd Mat Mat Mat Fac Was Fac Hostile Shots Fired 434 | . 41 10 136 190 3 54 Missed 138 | . 17 3 42 51 1 24 Damage Taken 5467 | . 379 93 2220 2094 66 615 Core 1246 | . 30 14 413 390 66 333 Absorbed by Shields . | . . . . . . . Regen/Repaired (Parts) 105 | . . 105 . . . . Core Remaining (%) 77 | 100 88 96 24 . . . Volleys Fired 230 | . 47 4 90 76 . 13 Largest 3 | . 2 2 2 3 . 1 Hottest 170 | . 65 136 136 170 . 20 Shots Fired 426 | . 80 8 177 151 . 10 Gun 109 | . 25 2 3 69 . 10 Cannon 299 | . 37 6 174 82 . . Launcher 18 | . 18 . . . . . Special . | . . . . . . . Kinetic 261 | . 62 4 113 82 . . Thermal 85 | . . 4 64 7 . 10 Explosive 18 | . 18 . . . . . Electromagnetic 62 | . . . . 62 . . Robot Hit Streak 21 | . 21 4 14 7 . 4 Robot Miss Streak 8 | . 2 1 4 8 . 2 Penetration Max 1 | . . . 1 . . . Secondary Targets . | . . . . . . . Shots Hit Robots 233 | . 49 6 102 68 . 8 Core Hits 118 | . 29 3 51 25 . 10 Critical Kills . | . . . . . . . Critical Parts Destroyed . | . . . . . . . Critical Strikes 13 | . 1 . 5 7 . . Blast 11 | . 1 . 5 5 . . Corrupt 2 | . . . . 2 . . Melee Attacks . | . . . . . . . Impact . | . . . . . . . Slashing . | . . . . . . . Piercing . | . . . . . . . Sneak Attacks . | . . . . . . . Combat Hostiles . | . . . . . . . Follow-up Attacks . | . . . . . . . Damage Inflicted 5627 | . 1235 108 2532 1562 . 190 Guns 794 | . 165 10 14 431 . 174 Cannons 3953 | . 426 98 2518 911 . . Explosions 798 | . 644 . . 154 . . Melee . | . . . . . . . Ramming 82 | . . . . 66 . 16 Kinetic 3114 | . 591 47 1565 911 . . Thermal 1451 | . . 61 967 249 . 174 Explosive 624 | . 624 . . . . . Electromagnetic 356 | . 20 . . 336 . . Impact . | . . . . . . . Slashing . | . . . . . . . Piercing . | . . . . . . . Highest Corruption 30 | . . . 18 11 27 30 Average Corruption 12 | . . . 8 3 17 29 Corruption Purged . | . . . . . . . Corruption Blocked . | . . . . . . . Effects 80 | . . . 12 24 8 36 Message Errors 21 | . . . 3 5 1 12 Matter Fused 13 | . . . 2 4 3 4 Heat Flow Errors 9 | . . . 1 4 1 3 Energy Discharges 13 | . . . 2 5 . 6 Parts Rejected 1 | . . . . . . 1 Parts Fused 1 | . . . . 1 . . Data Loss (minor) 5 | . . . 1 1 1 2 Data Loss (major) 2 | . . . . 1 . 1 Misfires 2 | . . . . 2 . . Alerts 3 | . . . 2 . . 1 Misdirections 5 | . . . . . 2 3 Weapon Failures 5 | . . . 1 1 . 3 Overload Shots . | . . . . . . . Overflow Damage 148 | . . . 41 107 . . Projectiles 74 | . . . 41 33 . . Explosions 74 | . . . . 74 . . Melee . | . . . . . . . Knockbacks 39 | . 4 . 22 13 . . Impact 1 | . . . . 1 . . Kinetic 36 | . 4 . 20 12 . . Secondary 2 | . . . 2 . . . Self-Inflicted Damage 113 | . 84 . . 22 . 7 Shots 3 | . 2 . . 1 . . Rammed 5 | . . . . . . 5 Targets Rammed 18 | . . . . 13 . 5 Kicked 13 | . . . . 13 . . Crushed . | . . . . . . . Highest Temperature 567 | . 64 66 393 567 106 386 Average Temperature 111 | . 21 25 90 146 55 166 Received Heat Transfer 1305 | . 183 57 558 324 . 183 Effects 11 | . . . . 10 . 1 Shutdowns 4 | . . . . 3 . 1 Energy Bleed 1 | . . . . 1 . . Interference 5 | . . . . 5 . . Short Circuit 1 | . . . . 1 . . Siege Activations . | . . . . . . . Robots Corrupted 2 | . . . . 2 . . Combat Hostiles 2 | . . . . 2 . . Parts Fried 1 | . . . . 1 . . Impact Corruptions . | . . . . . . . Robots Melted . | . . . . . . . Combat Hostiles . | . . . . . . . Parts Melted 3 | . . . 3 . . . Heat Transferred 2307 | . . 111 1628 235 . 333 Parts Sabotaged . | . . . . . . . Parts Stolen . | . . . . . . . Parts Stripped . | . . . . . . . Power Chain Reactions 1 | . . . . 1 . . Alert | -11 -10 -9 -8 -7 -7 -7 ------- Run | Yrd Mat Mat Mat Fac Was Fac Peak Influence 361 | . 202 98 361 175 15 75 Initial 142 | . . 46 40 142 . 3 Average 86 | . 69 76 138 71 3 20 Maximum Alert Level 1 | . 1 . 1 . . . Low Security (%) 88 | 100 97 100 69 100 100 100 Level 1 11 | . 2 . 30 . . . Level 2 . | . . . . . . . Level 3 . | . . . . . . . Level 4 . | . . . . . . . Level 5 . | . . . . . . . High Security . | . . . . . . . Max Security . | . . . . . . . Squads Dispatched 14 | . 4 . 5 5 . . Investigation 6 | . 2 . 3 1 . . Extermination 4 | . . . . 4 . . Reinforcement 4 | . 2 . 2 . . . Assault . | . . . . . . . Garrison . | . . . . . . . Intercept . | . . . . . . . Searches Triggered . | . . . . . . . Construction Impeded . | . . . . . . . Haulers Reinforced . | . . . . . . . Active Scanning Responses . | . . . . . . . Cargo Convoy Interrupts . | . . . . . . . Stealth | -11 -10 -9 -8 -7 -7 -7 --------- Run | Yrd Mat Mat Mat Fac Was Fac Distress Signals 4 | . 1 . 2 1 . . Communications Jammed . | . . . . . . . Distress Signals . | . . . . . . . Times Spotted 92 | . 17 4 39 20 6 6 Peak Tracking Total 6 | . 2 3 6 4 6 3 Tactical Retreats 11 | . 2 . 3 3 1 2 Traps | -11 -10 -9 -8 -7 -7 -7 ------- Run | Yrd Mat Mat Mat Fac Was Fac Traps Triggered 5 | . . . 2 1 . 2 Indirectly . | . . . . . . . Trap Hack Attempts . | . . . . . . . Triggered . | . . . . . . . Disarmed . | . . . . . . . Reprogrammed . | . . . . . . . Reused . | . . . . . . . Traps Extracted . | . . . . . . . Installed . | . . . . . . . Triggered . | . . . . . . . Machines | -11 -10 -9 -8 -7 -7 -7 ---------- Run | Yrd Mat Mat Mat Fac Was Fac Machines Disabled 8 | . 3 . 1 4 . . Max in Single Turn 2 | . 1 . 1 2 . . Machines Repaired . | . . . . . . . Machines Dismantled . | . . . . . . . Machines Sabotaged . | . . . . . . . Overloaded Fab Kills . | . . . . . . . Hacking | -11 -10 -9 -8 -7 -7 -7 --------- Run | Yrd Mat Mat Mat Fac Was Fac Machines Accessed 15 | . 3 2 5 5 . . Terminals 8 | . 2 . 4 2 . . Fabricators 1 | . . . . 1 . . Repair Stations 2 | . . 1 . 1 . . Recycling Units 3 | . 1 1 . 1 . . Scanalyzers 1 | . . . 1 . . . Garrison Access . | . . . . . . . Total Hacks 48 | . 12 8 16 12 . . Successful 31 | . 8 4 12 7 . . Failed 17 | . 4 4 4 5 . . Catastrophic . | . . . . . . . Database Lockouts . | . . . . . . . Manual 1 | . . 1 . . . . Terminals 25 | . 8 . 13 4 . . Fabricators 2 | . . . . 2 . . Repair Stations 8 | . . 5 . 3 . . Recycling Units 10 | . 4 3 . 3 . . Scanalyzers 3 | . . . 3 . . . Garrison Access . | . . . . . . . Terminal Hacks 17 | . 4 . 10 3 . . Record 4 | . . . 3 1 . . Open DSF 1 | . . . . 1 . . Emergency Access Points 3 | . 1 . 1 1 . . Alert Level 5 | . 1 . 4 . . . Unreport Threat 1 | . . . 1 . . . Locate Traps 2 | . 2 . . . . . Zone Layout 1 | . . . 1 . . . Fabricator Hacks 1 | . . . . 1 . . Network Status 1 | . . . . 1 . . Repair Station Hacks 3 | . . 2 . 1 . . Scan Component 2 | . . 1 . 1 . . Repair 1 | . . 1 . . . . Recycling Unit Hacks 8 | . 4 2 . 2 . . Recycle Component 3 | . 3 . . . . . Report Inventory 2 | . 1 1 . . . . Retrieve Matter 3 | . . 1 . 2 . . Scanalyzer 2 | . . . 2 . . . Insert Component 1 | . . . 1 . . . Analyze 1 | . . . 1 . . . Garrison Access Hacks . | . . . . . . . Unauthorized Hacks . | . . . . . . . Terminals . | . . . . . . . Fabricators . | . . . . . . . Repair Stations . | . . . . . . . Recycling Units . | . . . . . . . Scanalyzers . | . . . . . . . Garrison Access . | . . . . . . . Data Cores Recovered . | . . . . . . . Used . | . . . . . . . Hacking Detections 14 | . 3 2 4 5 . . Full Trace Events 5 | . 2 . 2 1 . . Feedback Events . | . . . . . . . Feedback Blocked . | . . . . . . . Robot Schematics Acquired . | . . . . . . . Robots Built . | . . . . . . . Authchips . | . . . . . . . Time . | . . . . . . . Total Robot Build Rating . | . . . . . . . Part Schematics Acquired . | . . . . . . . Parts Built . | . . . . . . . Authchips . | . . . . . . . Time . | . . . . . . . Total Part Build Rating . | . . . . . . . Parts Repaired 1 | . . 1 . . . . Time 26 | . . 26 . . . . Parts Recycled 3 | . 3 . . . . . Recycled Matter . | . . . . . . . Retrieved Matter . | . . . . . . . Retrieved Components . | . . . . . . . Parts Scanalyzed 1 | . . . 1 . . . Part Schematics Acquired . | . . . . . . . Parts Damaged . | . . . . . . . Bothacking | -11 -10 -9 -8 -7 -7 -7 ------------ Run | Yrd Mat Mat Mat Fac Was Fac Used RIF Installer . | . . . . . . . Robots Hacked . | . . . . . . . Non-combat . | . . . . . . . Combat . | . . . . . . . Robot Hacks Applied . | . . . . . . . Relay Couplers Released . | . . . . . . . Fabnet Peak Effective % . | . . . . . . . Robots Rewired . | . . . . . . . Allies Hacked . | . . . . . . . Hacks Repelled . | . . . . . . . Allies | -11 -10 -9 -8 -7 -7 -7 -------- Run | Yrd Mat Mat Mat Fac Was Fac Total Allies 1 | . . . . . 1 . Largest Group 1 | . . . . . 1 . Highest-Rated Group 31 | . . . . . 31 . Highest-Rated Ally 31 | . . . . . 31 . Total Orders . | . . . . . . . Ally Attacks 7 | . . . . . 7 . Total Damage 102 | . . . . . 102 . Kills . | . . . . . . . Allies Corrupted . | . . . . . . . Allies Melted . | . . . . . . . Intel | -11 -10 -9 -8 -7 -7 -7 ------- Run | Yrd Mat Mat Mat Fac Was Fac Robot Analysis Total . | . . . . . . . Derelict Logs Recovered . | . . . . . . . Drone Launches . | . . . . . . . Drone Recoveries . | . . . . . . . Exploration | -11 -10 -9 -8 -7 -7 -7 ------------- Run | Yrd Mat Mat Mat Fac Was Fac Turns Passed 5908 | 142 1049 292 2077 1665 130 553 Spaces Moved 3266 | 56 479 151 883 933 222 542 Core 609 | 5 . . . 30 222 352 Treads 1263 | 51 479 . 667 24 . 42 Legs 1286 | . . 151 216 879 . 40 Wheels 108 | . . . . . . 108 Hover . | . . . . . . . Flight . | . . . . . . . Fastest Speed 50 | 50 160 120 90 50 50 50 Average Speed 119 | 151 160 146 149 104 50 79 Slowest Speed 360 | 160 160 190 360 250 50 190 Overloaded Moves . | . . . . . . . Propulsion Burnouts . | . . . . . . . Robots Hopped . | . . . . . . . Cave-ins Triggered 4 | . . . 4 . . . Exploration Rate (%) 34 | 5 59 20 42 13 89 15 Regions Visited 6 Branch Regions . Pre-discovered Areas . | . . . . . . . Known Exits Taken . | . . . . . . . Unknown Exits Taken 4 | 1 1 1 1 . . . Scrap Searched . | . . . . . . . Spaces Dug 6 | . . . 6 . . . Terrain Destroyed 235 | . 126 . 64 45 . . Melee . | . . . . . . . Projectile 99 | . 1 . 64 34 . . AOE 136 | . 125 . . 11 . . Terrain Rammed . | . . . . . . . Walls Destroyed . | . . . . . . . Machines Disabled . | . . . . . . . Actions | -11 -10 -9 -8 -7 -7 -7 --------- Run | Yrd Mat Mat Mat Fac Was Fac Total 4845 | 111 684 215 1456 1493 241 645 Wait 1077 | 46 138 46 367 423 9 48 Move 3261 | 55 478 150 882 933 221 542 Hop . | . . . . . . . Pick Up 62 | 4 9 1 25 8 6 9 Fast Attach 35 | 5 1 3 12 3 1 10 Attach 34 | 1 . 2 8 16 . 7 Detach 4 | . . 1 2 1 . . Swap 63 | . 8 2 35 13 . 5 Drop 61 | . 3 6 35 7 4 6 Fire 230 | . 47 4 90 76 . 13 Melee . | . . . . . . . Ram 5 | . . . . . . 5 Kick 13 | . . . . 13 . . Crush . | . . . . . . . Escape Stasis . | . . . . . . . Rewire . | . . . . . . . Trap . | . . . . . . . Miscellaneous . | . . . . . . . Route ------- -11/Scrapyard -10/Materials -9/Materials -8/Materials -7/Factory -7/Waste -7/Factory (discovered 1 exit: [*Fac]) History --------- Turn | Location | Event 7 | -11/Scrapyard | Discovered new exit (range 16) 143 | -11/Scrapyard | Entered Materials 308 | -10/Materials | Build established: Mutant 1093 | -10/Materials | Discovered new exit (range 11) 1192 | -10/Materials | Entered another Materials area 1192 | -9/Materials | Evolved 2 slots: Propulsion x2 1413 | -9/Materials | Discovered new exit (range 16) 1460 | -9/Materials | Repaired Lgt. Treads 1484 | -9/Materials | Entered another Materials area 1484 | -8/Materials | Evolved 2 slots: Utility x2 2647 | -8/Materials | Build established: Scavenger-Mutant 3210 | -8/Materials | Crushed by falling debris 3241 | -8/Materials | Lost 3 parts (1n2u) 3511 | -8/Materials | Build established: Mutant 3514 | -8/Materials | Crushed by falling debris 3514 | -8/Materials | System corruption reached 10% 3533 | -8/Materials | Crushed by falling debris 3534 | -8/Materials | Crushed by falling debris 3534 | -8/Materials | Core integrity fell below 50% 3547 | -8/Materials | Discovered new exit (range 14) 3561 | -8/Materials | Entered Factory 3561 | -7/Factory | Evolved 2 slots: Power x1, Weapon x1 3581 | -7/Factory | Lost 4 parts (1p2u1w) 3954 | -7/Factory | Identified exit to DSF 4201 | -7/Factory | Build established: Skirmisher 4926 | -7/Factory | Lost 3 parts (2p1w) 5106 | -7/Factory | Lost 4 parts (1p1n2u) 5197 | -7/Factory | Lost 8 parts (2p2n1u3w) 5210 | -7/Factory | System corruption reached 10% 5213 | -7/Factory | Core integrity fell below 50% 5226 | -7/Factory | Sucked down chute 5226 | -7/Factory | Entered Waste 5227 | -7/Waste | Met a frightened Derelict 5236 | -7/Waste | Spotted C-40 Crusher 5237 | -7/Waste | Spotted C-40 Crusher 5241 | -7/Waste | EMP discharged 5260 | -7/Waste | Spotted C-40 Crusher 5284 | -7/Waste | Spotted C-40 Crusher 5284 | -7/Waste | Spotted C-40 Crusher 5317 | -7/Waste | Spotted C-40 Crusher 5320 | -7/Waste | Crushed by Compactor (1 part destroyed) 5341 | -7/Waste | EMP discharged 5345 | -7/Waste | Discovered new exit (range 12) 5356 | -7/Waste | Entered Factory 5403 | -7/Factory | System corruption reached 30% 5439 | -7/Factory | Build established: Mutant 5542 | -7/Factory | Core integrity fell below 20% 5746 | -7/Factory | Discovered new exit (range 13) 5909 | -7/Factory | Destroyed by Y-54 Guardian via exploding Fusion Modulator Last Messages --------------- (-115). 05834_ K-01 Serf destroyed. 05838_ Acquired 14 matter. 05850_ System corrupted: Energy discharge (-177). 05862_ Acquired Imp. Field Recycling Unit. 05865_ System corrupted: Substantial component data lost. 05880_ System corrupted: Matter fused (-9). 05890_ K-01 Serf cleans the Fabricator. 05891_ Acquired Hvy. Missile Launcher. 05894_ K-01 Serf cleans the Fabricator. 05898_ XFS>C4&ZQTOO%SW4XOICF#B8:T T: 05900_ Acquired Med. Treads. 05905_ K-01 Serf collects debris. 05908_ K-01 Serf cleans the Fusion Modulator. 05909_ Fusion Modulator explodes. 05909_ Imp. Deuterium Engine destroyed. 05909_ Fusion Modulator explodes. 05909_ Fabricator disabled. Map ----- +----------------------------------------------------+ | ??????????????????????# #????? | | ??????????????????????# * #????? | | ??????????????????????# ###### | | ??????????????????????# # | | ???????????????????? * ! + * | | ??????????????????????####### # * | | ????????????????????????????##+##### ###### ###### | | ???????????????????????????????????#+######+###### | | ???????????????????????????????????# + | | ???????????????????????????????????# """"###### | | ???????????????????????????????????# """"#????? | | ???????????????????????????????????# """"#????? | | ???????????????????????????????????# """"#????? | | ???????????????????????????????????# """"#????? | | ???????????????????????????????????# """"#????? | | ???????????????????????????????????# """"#????? | | ???????????????????????????????????# #???## | | ???????????????????????????????????##+#######? | | ????????????????##############??????# ####### | | ????????????????# #??????# ^ | | ????????????????# " #??????# | | ??????????##????# " #??????# """"" """" | | ?? ##### ??# #??????# """"" """? | | ?? # #??????# """ """ | | ?? ! Y/ #??????# | | ?? # @ *#??????#! | | ?? ##### ??# #??##+## | | ??????????##????# #### ! | | ????????????????# + !! ! | | ????????????????+ k #### ! | | ????????????????# #??# " F | | ????????????????##############??# """ | | ????????????????????????????????# = | | ???????????????????????????????? | | ???????????????????????????????#########""T""##### | | ????????????????????????????????????????"""""#???? | | ????????????????????????????????????????######???? | | ?????????????????????????????????????????????????? | | | | | | | | | | | | | | | | | | | | | | | | | +----------------------------------------------------+ Best States ------------- Heat Dissipation 59 Energy Generation 27 Energy Capacity 480 Matter Stores 450 Matter Capacity 450 Sight Range 16 Robot Scan Range 15 Terrain Scan Density 10 Armor Coverage 600 Evasion (%) 55 Targeting Accuracy 5 Recoil Reduction 4 Particle Charging 15 Kinecelleration 30 Item Schematics ----------------- None Robot Schematics ------------------ None Fabricated ------------ Nothing Alien Tech Used ----------------- None Achievements -------------- Everything Is Under Control I Spy Unlikely Earthworm Challenges ------------ None Game ------ Seed UtilityAerolevStorm Manual? 0 Play Time 01:13:05 Cumulative 7.9 hours Start 2024.04.03 @ 11:23:50 End 2024.04.03 @ 13:14:14 Sessions 1 Manual Loads 0 Difficulty Rogue Special Mode None Game No. 9 Rogue 9 Adventurer 0 Explorer 0 Win Type - Total 0 Types 0/0/0/0/0/0/0/0/0 Lore% 9 Gallery% 16 Achievement% 14 Wizard Run 0 Options --------- Layout 1 ASCII 0 Keyboard 0 Movement Mouse Keybinds 0 Fullscreen 2 Font 24/Terminus Map View 50x35 Zoom Use 0% Tactical HUD 1 Map Filters NONE Filters NONE Steam 1 RUN: 77a20eb6-5e3f-4ff3-8bae-c42ccb0e4c50